Cogmind - Beta 16.1 @@@ ROGUE MODE // 2026.02.17 @ 23:04:37 Player: SunShine214 Result: Destroyed by Y-72 Warden with Railgun Performance ------------- Evolutions (7) 3500 Regions Visited (15) 3000 Robots Destroyed (74) 370 Value Destroyed (1904) 1904 Prototype IDs (31) 620 Alien Tech Used (0) 0 Bonus (1533) 1533 TOTAL SCORE: 10927 Bonus ------- High Alert Combat Kills 19 Follower Combat Kills 286 Entered DSFs 1000 Aligned with FarCom 300 Friendly Fire -72 Cogmind --------- Core Integrity 0/1300 Matter 96/300 Energy 97/100 System Corruption 1% Temperature Cool (0) Movement Core (50) Location -3/Research Parts ------- > --- POWER (2) -------- (None) > --- PROPULSION (7) --- (None) > --- UTILITY (10) ----- Modified TNC Improved Melee Analysis Suite Hacking Suite Hacking Suite > --- WEAPON (2) ------- (None) > --- INVENTORY (5) ---- Micro Antimatter Reactor Biometal Leg Variable Charge Gun Advanced EMP Blaster Gamma Bomb Array Peak State ------------ > --- POWER ------------ Micro Antimatter Reactor > --- PROPULSION ------- Antigrav System Improved Flight Unit Improved VTOL Module Nuclear Pulse Array > --- UTILITY ---------- Small Storage Unit Spectral Analyzer Modified TNC Reaction Control System Advanced Thermal Shield Hacking Suite Hacking Suite Hacking Suite Hacking Suite Hacking Suite > --- WEAPON ----------- Tesla Rifle Scythe > --- INVENTORY -------- Heavy Deuterium Engine Reaction Control System Cooled Pulse Rifle Variable Charge Gun Advanced EMP Blaster Gamma Bomb Array Missile Launcher Missile Launcher [Rating: 86] Favorites ----------- Power Light Ion Engine Engine Light Ion Engine Reactor Micro Antimatter Reactor Propulsion Light Treads Treads Light Treads Hover Unit Antigrav System Flight Unit Improved Flight Unit Utility Small Storage Unit Device Reaction Control System Storage Small Storage Unit Processor Modified TNC Hackware Hacking Suite Protection Hardened Medium Armor Plating Weapon Scythe Energy Gun Medium Laser Ballistic Gun Assault Rifle Launcher Grenade Launcher Slashing Weapon Scythe Build | -11 -10 -10 -9 -9 -9 -8 -8 -8 -8 -6 -6 -5 -4 -4 -3 ------- Run | Yrd Mat Min Mat Min Exi Min Mat Sto Rec Fac DSF Fac Fac DSF Res Slots Evolved 14 | . . . 2 . . . 2 . . 4 . 2 2 . 2 Power 1 | . . . . . . . . . . . . . . . 1 Propulsion 5 | . . . . . . . 2 . . 2 . . . . 1 Utility 8 | . . . 2 . . . . . . 2 . 2 2 . . Weapon . | . . . . . . . . . . . . . . . . Parts Attached 64 | 8 3 2 13 5 1 1 13 3 1 2 . 5 . . 7 Power 6 | 2 . . . 1 . . 2 . . . . . . . 1 Engine 5 | 2 . . . 1 . . 2 . . . . . . . . Core . | . . . . . . . . . . . . . . . . Reactor 1 | . . . . . . . . . . . . . . . 1 Propulsion 19 | 2 1 . 5 2 . . 5 1 1 . . 2 . . . Treads 8 | 2 1 . 5 . . . . . . . . . . . . Leg . | . . . . . . . . . . . . . . . . Wheel . | . . . . . . . . . . . . . . . . Hover 1 | . . . . . . . . . . . . 1 . . . Flight 10 | . . . . 2 . . 5 1 1 . . 1 . . . Utility 19 | 2 . 1 4 1 1 1 1 1 . 2 . 2 . . 3 Device 4 | 1 . 1 . . . . . 1 . . . . . . 1 Storage 1 | 1 . . . . . . . . . . . . . . . Processor 3 | . . . . . 1 . . . . . . . . . 2 Hackware 5 | . . . . . . . 1 . . 2 . 2 . . . Protection 6 | . . . 4 1 . 1 . . . . . . . . . Artifact . | . . . . . . . . . . . . . . . . Weapon 20 | 2 2 1 4 1 . . 5 1 . . . 1 . . 3 Energy Gun 11 | 1 2 . 3 . . . 4 . . . . 1 . . . Energy Cannon . | . . . . . . . . . . . . . . . . Ballistic Gun 1 | 1 . . . . . . . . . . . . . . . Ballistic Cannon . | . . . . . . . . . . . . . . . . Launcher 7 | . . 1 1 1 . . . 1 . . . . . . 3 Special Weapon . | . . . . . . . . . . . . . . . . Impact Weapon . | . . . . . . . . . . . . . . . . Slashing Weapon 1 | . . . . . . . 1 . . . . . . . . Piercing Weapon . | . . . . . . . . . . . . . . . . Special Melee Weapon . | . . . . . . . . . . . . . . . . Unidentified Prototypes 8 | . . . 1 . . . 4 2 . . . . . . 1 Parts Lost 29 | . 1 2 4 4 . . 2 . 1 . 1 . . 1 13 Power 4 | . 1 . 1 1 . . . . . . . . . 1 . Propulsion 8 | . . 1 . . . . 1 . 1 . 1 . . . 4 Utility 10 | . . . 2 2 . . . . . . . . . . 6 Weapon 7 | . . 1 1 1 . . 1 . . . . . . . 3 Highest Loss Streak 13 | . 1 2 2 4 . . 1 . 1 . 1 . . 1 13 To Critical Strikes . | . . . . . . . . . . . . . . . . Average Backups 6 | 1 4 6 7 7 8 8 7 7 7 7 7 5 6 6 6 Power . | . . . . . . . . 1 1 1 1 1 1 1 1 Propulsion 1 | . 1 2 3 3 3 3 . . . . . . . . . Utility 1 | . . 1 1 1 2 2 2 4 3 2 2 . . . . Weapon 2 | . 2 2 2 2 3 3 3 2 3 3 4 4 5 5 4 Tool/Special . | . . . . . . . . . . . . . . . . Unused Backups 10 | . . . 1 . . . . 1 4 . . . . . 4 Power 1 | . . . . . . . . . . . . . . . 1 Propulsion 1 | . . . . . . . . . . . . . . . 1 Utility 6 | . . . . . . . . 1 4 . . . . . 1 Weapon 2 | . . . 1 . . . . . . . . . . . 1 Tool/Special . | . . . . . . . . . . . . . . . . Average Slot Usage (%) 86 | . 99 100 88 80 48 55 89 95 94 75 73 77 78 75 60 Engine 7 | . 13 14 9 7 . . 4 9 9 6 6 5 5 2 . Treads 11 | . 28 28 22 16 . . . . . . . . . . . Flight 13 | . . . . 5 22 22 35 33 31 20 20 11 15 15 10 Device 5 | . 14 14 2 . . . . 6 9 6 6 5 5 5 5 Storage 9 | . 14 14 11 11 11 11 8 9 9 6 6 5 5 5 3 Processor 4 | . . . . . 4 11 9 9 9 6 6 5 5 5 6 Hackware 6 | . . . . . . . 8 9 9 17 20 28 26 26 21 Protection 7 | . . . 21 20 . . 9 2 . . . . . . . Energy Gun 8 | . 25 20 10 8 . . 9 . . . . 2 5 5 2 Launcher 6 | . . 7 9 11 11 11 2 6 9 4 . . . . . Slashing Weapon 2 | . . . . . . . 2 9 9 6 6 5 5 5 2 Peak Build Rating 86 | 9 9 9 18 19 12 13 30 35 35 39 35 62 62 62 86 Average Rating 22 | 5 8 7 13 14 8 12 22 31 33 36 34 47 62 61 59 On Entrance 26 | . 9 9 7 15 6 12 13 29 34 33 35 32 62 62 61 Avg Prop Armor Cover (%) 5 | . . . . . . . . . . . . 5 5 5 6 Naked Turns . | . . . . . . . . . . . . . . . . Heaviest Build 39 | 14 15 14 38 39 9 10 19 19 19 19 13 18 18 18 34 Greatest Support 40 | 40 40 40 40 40 10 10 20 20 20 15 15 25 25 25 25 Greatest Overweight (x) 5 | . . . . . . . 1 . 1 1 1 5 . . 1 Average Overweight (x) . | . . . . . . . . . . . . . . . . Largest Inventory Capacity 8 | 8 8 8 8 8 8 8 8 8 8 8 8 8 8 8 8 Average Capacity 7 | 6 8 8 8 8 8 8 7 8 8 8 8 8 8 8 7 Most Carried 8 | 4 7 7 8 8 8 8 8 8 8 7 7 6 6 6 8 Average Carried 6 | 1 4 6 7 7 8 8 7 7 7 6 7 5 6 6 6 Final Capacity 8 | 8 8 8 8 8 8 8 8 8 8 8 8 8 8 8 5 Final Carried 8 | 3 7 6 8 8 8 8 8 8 8 7 7 6 6 6 5 Class Distribution -------------------- 57% | Mutant 11% | Commander-Sprinter 8% | Commander-Mutant 8% | Hacker-Sprinter 8% | Scavenger-Sprinter 5% | Hacker-Mutant Dominant Class ---------------- Mutant | -10/Materials Mutant | -10/Mines Mutant | -9/Materials Mutant | -9/Mines Mutant | -9/Exiles Mutant | -8/Mines Scavenger-Sprinter | -8/Materials Commander-Sprinter | -8/Storage Commander-Mutant | -8/Recycling Commander-Mutant | -6/Factory Hacker-Sprinter | -6/DSF Hacker-Mutant | -5/Factory Hacker-Mutant | -4/Factory Hacker-Sprinter | -4/DSF Hacker-Sprinter | -3/Research Resources | -11 -10 -10 -9 -9 -9 -8 -8 -8 -8 -6 -6 -5 -4 -4 -3 ----------- Run | Yrd Mat Min Mat Min Exi Min Mat Sto Rec Fac DSF Fac Fac DSF Res Matter Collected 1331 | 304 38 32 403 194 . 59 234 38 19 . . . . 1 9 Remotely . | . . . . . . . . . . . . . . . . Salvage Created 1937 | 137 357 131 524 189 . 162 241 142 . . . . . . 54 Parts 127 | 6 22 15 37 15 . 5 12 12 . . . . . . 3 Haulers Intercepted 7 | . 1 . 2 . . . 3 1 . . . . . . . Recyclers Shooed 2 | . . . . . . 1 1 . . . . . . . . Parts Field Recycled . | . . . . . . . . . . . . . . . . Retrieved Matter . | . . . . . . . . . . . . . . . . Parts Self-Destructed . | . . . . . . . . . . . . . . . . Prevented . | . . . . . . . . . . . . . . . . Parts Restored . | . . . . . . . . . . . . . . . . Kills | -11 -10 -10 -9 -9 -9 -8 -8 -8 -8 -6 -6 -5 -4 -4 -3 ------- Run | Yrd Mat Min Mat Min Exi Min Mat Sto Rec Fac DSF Fac Fac DSF Res Combat Hostiles Destroyed 51 | . 7 4 18 12 . 6 2 . . . . . . . 2 Melee 1 | . . . . . . . 1 . . . . . . . . Guns 14 | . 7 . 5 1 . . 1 . . . . . . . . AOE 36 | . . 4 13 11 . 6 . . . . . . . . 2 Classes Destroyed 12 | 2 5 1 1 3 . . . . . . . . . . . Worker 1 | . . . . 1 . . . . . . . . . . . Builder 5 | . . 2 3 . . . . . . . . . . . . Tunneler 3 | 2 . . 1 . . . . . . . . . . . . Hauler 7 | . 1 . 2 . . . 3 1 . . . . . . . Recycler 2 | 1 . . . . . . . 1 . . . . . . . Operator 4 | . 2 . . . . . . 2 . . . . . . . Watcher 2 | . 2 . . . . . . . . . . . . . . Swarmer 15 | . 3 2 6 3 . . . . . . . . . . 1 Grunt 25 | . 4 2 6 7 . 4 1 . . . . . . . 1 Duelist 3 | . . . . 1 . 2 . . . . . . . . . Sentry 7 | . . . 6 . . . 1 . . . . . . . . Assembled 1 | . . . . 1 . . . . . . . . . . . Best Kill Streak 9 | 3 7 6 8 9 . 3 2 1 . . . . . . 2 Combat Bots Only 8 | . 3 4 4 8 . 3 1 . . . . . . . 2 Max Kills in Single Turn 4 | 1 2 4 3 3 . 1 1 1 . . . . . . 2 Gunslinging . | . . . . . . . . . . . . . . . . Exploded 3 | . . 2 2 3 . 1 . . . . . . . . 2 Melee 1 | . . . . . . . 1 . . . . . . . . Uniques/NPCs Destroyed . | . . . . . . . . . . . . . . . . Combat | -11 -10 -10 -9 -9 -9 -8 -8 -8 -8 -6 -6 -5 -4 -4 -3 -------- Run | Yrd Mat Min Mat Min Exi Min Mat Sto Rec Fac DSF Fac Fac DSF Res Hostile Shots Fired 442 | . 54 16 110 20 . 6 58 . 2 . 9 . . 27 140 Missed 146 | . 10 5 26 4 . 2 26 . 1 . 5 . . 16 51 Hits 296 | . 44 11 84 16 . 4 32 . 1 . 4 . . 11 89 Melee 2 | . . . . 1 . . . . . . 1 . . . . Projectile 294 | . 44 11 84 15 . 4 32 . 1 . 3 . . 11 89 AOE 5 | . . . . 5 . . . . . . . . . . . Critical Strikes 12 | . 1 . 3 2 . . . . . . . . . . 6 Damage Taken 5178 | . 444 139 1216 555 . 66 373 . 71 . 94 . . 209 2011 Core 1800 | . 70 15 77 53 . 31 66 . . . 34 . . 132 1322 Absorbed by Shields . | . . . . . . . . . . . . . . . . Redirected to Shielding 12 | . . . . . . . 12 . . . . . . . . Ignored by Resistances 112 | . . . . . . . . . . . . . . . 112 Regen/Repaired (Parts) 165 | . . . . . . . 139 . . . . . . . 26 Core Remaining (%) 85 | 100 . 66 . . . 59 . . 88 . 96 100 . 88 . Volleys Fired 116 | 8 27 4 39 9 . 8 15 . 1 . . . . . 5 Largest 2 | 2 2 2 2 2 . 1 1 . 1 . . . . . 1 Hottest 95 | 60 90 90 95 89 . 33 63 . 36 . . . . . 36 Shots Fired 196 | 16 51 8 74 18 . 8 15 . 1 . . . . . 5 Gun 139 | 16 51 6 42 9 . . 15 . . . . . . . . Cannon . | . . . . . . . . . . . . . . . . Launcher 57 | . . 2 32 9 . 8 . . 1 . . . . . 5 Special . | . . . . . . . . . . . . . . . . Kinetic 16 | 8 1 . 7 . . . . . . . . . . . . Thermal 95 | 8 24 4 35 9 . . 15 . . . . . . . . Explosive 56 | . . 2 32 9 . 8 . . . . . . . . 5 Electromagnetic 29 | . 26 2 . . . . . . 1 . . . . . . Robot Hit Streak 16 | 4 4 5 16 3 . 4 3 . 1 . . . . . 6 Robot Miss Streak 5 | 3 4 2 4 2 . 2 5 . . . . . . . . Penetration Max . | . . . . . . . . . . . . . . . . Secondary Targets 1 | . 1 . . . . . . . . . . . . . . Max Gunslinging Chain 1 | . 1 . . . . . . . . . . . . . . Shots Hit Robots 135 | 9 27 5 47 9 . 5 15 8 3 . 1 . . . 6 Core Hits 134 | 4 18 10 48 22 . 15 6 2 . . . . . . 9 Critical Kills . | . . . . . . . . . . . . . . . . Critical Parts Destroyed . | . . . . . . . . . . . . . . . . Critical Strikes 5 | . 2 . 1 . . . 1 1 . . . . . . . Burn 3 | . 2 . 1 . . . . . . . . . . . . Sever 2 | . . . . . . . 1 1 . . . . . . . Melee Attacks 45 | . . . . . . . 14 19 2 . 1 1 . . 8 Impact . | . . . . . . . . . . . . . . . . Slashing 45 | . . . . . . . 14 19 2 . 1 1 . . 8 Piercing . | . . . . . . . . . . . . . . . . Sneak Attacks 8 | . . . . . . . 2 5 1 . . . . . . Combat Hostiles . | . . . . . . . . . . . . . . . . Follow-up Attacks . | . . . . . . . . . . . . . . . . Damage Inflicted 5405 | 104 418 298 1548 943 . 558 481 497 138 . 51 . . . 369 Guns 1146 | 104 387 38 416 99 . . 102 . . . . . . . . Cannons . | . . . . . . . . . . . . . . . . Explosions 3160 | . 29 240 1130 844 . 558 . . 31 . . . . . 328 Melee 1075 | . . . . . . . 379 497 107 . 51 . . . 41 Ramming 24 | . 2 20 2 . . . . . . . . . . . . Kinetic 114 | 48 13 . 53 . . . . . . . . . . . . Thermal 847 | 56 202 25 363 99 . . 102 . . . . . . . . Explosive 3100 | . . 240 1130 844 . 558 . . . . . . . . 328 Electromagnetic 245 | . 201 13 . . . . . . 31 . . . . . . Impact . | . . . . . . . . . . . . . . . . Slashing 1075 | . . . . . . . 379 497 107 . 51 . . . 41 Piercing . | . . . . . . . . . . . . . . . . Highest Corruption 2 | . . . . . . . 2 2 2 . . . . 1 1 Average Corruption 1 | . . . . . . . 2 2 2 . . . . 1 1 Corruption Purged . | . . . . . . . . . . . . . . . . Corruption Blocked . | . . . . . . . . . . . . . . . . Effects 12 | . . . . . . . 4 3 5 . . . . . . Message Errors 4 | . . . . . . . 1 2 1 . . . . . . Matter Fused 6 | . . . . . . . 1 1 4 . . . . . . Energy Discharges 1 | . . . . . . . 1 . . . . . . . . Alerts 1 | . . . . . . . 1 . . . . . . . . Overload Shots . | . . . . . . . . . . . . . . . . Overflow Damage 264 | . . . 53 53 . . . 121 26 . 11 . . . . Projectiles . | . . . . . . . . . . . . . . . . Explosions 106 | . . . 53 53 . . . . . . . . . . . Melee 158 | . . . . . . . . 121 26 . 11 . . . . Knockbacks . | . . . . . . . . . . . . . . . . Impact . | . . . . . . . . . . . . . . . . Kinetic . | . . . . . . . . . . . . . . . . Secondary . | . . . . . . . . . . . . . . . . Self-Inflicted Damage 432 | . . 26 172 192 . . . . 26 . . . . . 16 Shots 16 | . . 1 7 5 . . . . 1 . . . . . 2 Rammed 8 | . 1 6 1 . . . . . . . . . . . . Targets Rammed 8 | . 1 6 1 . . . . . . . . . . . . Kicked . | . . . . . . . . . . . . . . . . Crushed . | . . . . . . . . . . . . . . . . Highest Temperature 413 | . 264 67 413 219 . . 80 . 8 . . . . . 278 Average Temperature 115 | . 108 35 139 88 . . 36 . 5 . . . . . 131 Received Heat Transfer 1149 | . 117 36 333 98 . 36 126 . 12 . 18 . . 36 337 Effects 6 | . 1 . 5 . . . . . . . . . . . . Energy Bleed 2 | . . . 2 . . . . . . . . . . . . Interference 2 | . 1 . 1 . . . . . . . . . . . . Short Circuit 1 | . . . 1 . . . . . . . . . . . . Damage (minor) 1 | . . . 1 . . . . . . . . . . . . Siege Activations . | . . . . . . . . . . . . . . . . Martial Activations . | . . . . . . . . . . . . . . . . Shielding Activations . | . . . . . . . . . . . . . . . . Robots Disrupted . | . . . . . . . . . . . . . . . . Combat Hostiles . | . . . . . . . . . . . . . . . . Robots Corrupted . | . . . . . . . . . . . . . . . . Combat Hostiles . | . . . . . . . . . . . . . . . . Parts Fried . | . . . . . . . . . . . . . . . . Impact Corruptions . | . . . . . . . . . . . . . . . . Robots Melted . | . . . . . . . . . . . . . . . . Combat Hostiles . | . . . . . . . . . . . . . . . . Parts Melted 6 | 1 2 1 1 . . . 1 . . . . . . . . Heat Transferred 2183 | 125 619 74 921 222 . . 222 . . . . . . . . Parts Sabotaged . | . . . . . . . . . . . . . . . . Parts Stolen . | . . . . . . . . . . . . . . . . Parts Stripped . | . . . . . . . . . . . . . . . . Power Chain Reactions 1 | . 1 . . . . . . . . . . . . . . Alert | -11 -10 -10 -9 -9 -9 -8 -8 -8 -8 -6 -6 -5 -4 -4 -3 ------- Run | Yrd Mat Min Mat Min Exi Min Mat Sto Rec Fac DSF Fac Fac DSF Res Maximum Alert Level 2 | . . . 2 2 . . . 1 . . . . . . . Low Security (%) 87 | 100 100 100 75 1 . 100 100 84 100 100 100 100 100 100 100 Level 1 7 | . . . 10 75 . . . 15 . . . . . . . Level 2 4 | . . . 14 23 . . . . . . . . . . . Level 3 . | . . . . . . . . . . . . . . . . Level 4 . | . . . . . . . . . . . . . . . . Level 5 . | . . . . . . . . . . . . . . . . High Security . | . . . . . . . . . . . . . . . . Max Security . | . . . . . . . . . . . . . . . . Peak Influence 444 | 10 126 117 444 410 . 143 51 217 76 10 7 15 26 18 50 Initial 166 | . . 18 26 166 . . 51 8 76 10 7 . 2 18 4 Average 75 | . 71 46 141 299 . 61 13 98 10 10 5 1 8 11 11 Influence Increases 2403 | 15 208 147 744 349 . 183 80 297 99 . . 15 24 . 242 Destroy 0b10 Robot/C 1200 | . 140 100 360 220 . 120 40 140 40 . . . . . 40 Destroy 0b10 Robot/NC 125 | 15 25 10 30 5 . . 15 25 . . . . . . . Destroy Leader 290 | . 36 20 124 40 . 20 16 34 . . . . . . . Allied During Kill 106 | . . 10 1 . . . . 78 17 . . . . . . Successful Hack 88 | . . . 13 . . . 7 . 26 . . . 24 . 18 Disable Machine 105 | . . . 60 . . . . 15 15 . . 15 . . . Destroy Structure 309 | . 7 7 141 69 . 43 2 5 1 . . . . . 34 Partial Spotted 30 | . . . . . . . . . . . . . . . 30 Lose Combat Pursuer 150 | . . . 15 15 . . . . . . . . . . 120 Influence Decreases 2358 | 15 160 128 383 382 395 50 193 120 271 15 10 10 3 18 205 Entered New Map 976 | . . 30 41 262 395 . 82 12 121 15 3 . 3 8 4 Time Decay 1050 | 15 150 78 286 80 . 50 100 108 67 . . 10 . . 106 Lost Part 219 | . 10 . 36 40 . . 11 . 10 . 7 . . 10 95 Lost Ally 40 | . . 20 20 . . . . . . . . . . . . Purge Threat 73 | . . . . . . . . . 73 . . . . . . Squads Dispatched 13 | . 2 . 2 . . . 1 2 . . 1 . 1 1 3 Investigation 2 | . . . 1 . . . . . . . . . 1 . . Extermination 1 | . . . . . . . . . . . . . . . 1 Reinforcement 10 | . 2 . 1 . . . 1 2 . . 1 . . 1 2 Assault . | . . . . . . . . . . . . . . . . Garrison . | . . . . . . . . . . . . . . . . Intercept . | . . . . . . . . . . . . . . . . Searches Triggered . | . . . . . . . . . . . . . . . . Construction Impeded 1 | . . . 1 . . . . . . . . . . . . Haulers Reinforced . | . . . . . . . . . . . . . . . . Active Scanning Responses . | . . . . . . . . . . . . . . . . Cargo Convoy Interrupts . | . . . . . . . . . . . . . . . . Stealth | -11 -10 -10 -9 -9 -9 -8 -8 -8 -8 -6 -6 -5 -4 -4 -3 --------- Run | Yrd Mat Min Mat Min Exi Min Mat Sto Rec Fac DSF Fac Fac DSF Res Distress Signals 7 | . 1 . 4 . . . 1 1 . . . . . . . Communications Jammed . | . . . . . . . . . . . . . . . . Distress Signals . | . . . . . . . . . . . . . . . . Times Spotted 125 | . 15 4 23 13 . 8 16 3 3 . 12 . . 5 23 Peak Tracking Total 16 | . 5 2 6 7 . 3 8 2 2 . 11 . . 5 16 Tactical Retreats 7 | . . . 1 1 . . . . . . . . . . 5 Traps | -11 -10 -10 -9 -9 -9 -8 -8 -8 -8 -6 -6 -5 -4 -4 -3 ------- Run | Yrd Mat Min Mat Min Exi Min Mat Sto Rec Fac DSF Fac Fac DSF Res Traps Triggered 6 | . . . 1 . . . 1 . . . . 2 . . 2 Indirectly . | . . . . . . . . . . . . . . . . Trap Hack Attempts . | . . . . . . . . . . . . . . . . Triggered . | . . . . . . . . . . . . . . . . Disarmed . | . . . . . . . . . . . . . . . . Reprogrammed . | . . . . . . . . . . . . . . . . Reused . | . . . . . . . . . . . . . . . . Traps Extracted . | . . . . . . . . . . . . . . . . Installed . | . . . . . . . . . . . . . . . . Triggered . | . . . . . . . . . . . . . . . . Machines | -11 -10 -10 -9 -9 -9 -8 -8 -8 -8 -6 -6 -5 -4 -4 -3 ---------- Run | Yrd Mat Min Mat Min Exi Min Mat Sto Rec Fac DSF Fac Fac DSF Res Machines Disabled 9 | . . . 4 . . . . 1 3 . . 1 . . . Max in Single Turn 3 | . . . 2 . . . . 1 3 . . 1 . . . Garrison Access 1 | . . . . . . . 1 . . . . . . . . Machines Repaired . | . . . . . . . . . . . . . . . . Machines Dismantled . | . . . . . . . . . . . . . . . . Machines Sabotaged . | . . . . . . . . . . . . . . . . Overloaded Fab Kills . | . . . . . . . . . . . . . . . . Hacking | -11 -10 -10 -9 -9 -9 -8 -8 -8 -8 -6 -6 -5 -4 -4 -3 --------- Run | Yrd Mat Min Mat Min Exi Min Mat Sto Rec Fac DSF Fac Fac DSF Res Machines Accessed 25 | . 2 . 4 . 1 . 4 2 4 2 . 1 2 . 3 Terminals 17 | . 2 . 3 . . . 2 2 4 2 . . 2 . . Fabricators . | . . . . . . . . . . . . . . . . Repair Stations 2 | . . . . . . . 1 . . . . . . . 1 Recycling Units 1 | . . . . . . . . . . . . . . . 1 Scanalyzers 3 | . . . 1 . . . . . . . . 1 . . 1 Garrison Access 1 | . . . . . . . 1 . . . . . . . . Total Hacks 42 | . 2 . 9 . 1 . 5 2 11 2 . 2 4 . 4 Successful 24 | . . . 4 . 1 . 4 1 4 1 . 1 4 . 4 Failed 16 | . 2 . 4 . . . 1 1 7 1 . . . . . Catastrophic 4 | . 1 . . . . . . 1 1 1 . . . . . Database Lockouts 2 | . . . 1 . . . . . . . . 1 . . . Manual 15 | . 1 . 3 . 1 . 2 2 5 1 . . . . . Terminals 29 | . 2 . 6 . . . 2 2 11 2 . . 4 . . Fabricators . | . . . . . . . . . . . . . . . . Repair Stations 4 | . . . . . . . 2 . . . . . . . 2 Recycling Units 1 | . . . . . . . . . . . . . . . 1 Scanalyzers 6 | . . . 3 . . . . . . . . 2 . . 1 Garrison Access 1 | . . . . . . . 1 . . . . . . . . Terminal Hacks 14 | . . . 2 . 1 . 1 1 4 1 . . 4 . . Part Schematic 3 | . . . . . . . . . 3 . . . . . . Open DSF 2 | . . . . . . . . . . 1 . . 1 . . Level Access Points 1 | . . . . . . . . . . . . . 1 . . Branch Access Points 2 | . . . 1 . . . 1 . . . . . . . . Unreport Threat 1 | . . . . . . . . . 1 . . . . . . Hauler Manifests 2 | . . . 1 . . . . 1 . . . . . . . Registered Components 1 | . . . . . . . . . . . . . 1 . . Registered Prototypes 1 | . . . . . . . . . . . . . 1 . . Proto ID Catalog 1 | . . . . . 1 . . . . . . . . . . Fabricator Hacks . | . . . . . . . . . . . . . . . . Repair Station Hacks 4 | . . . . . . . 2 . . . . . . . 2 Scan Component 2 | . . . . . . . 1 . . . . . . . 1 Repair 2 | . . . . . . . 1 . . . . . . . 1 Recycling Unit Hacks 1 | . . . . . . . . . . . . . . . 1 Retrieve Components 1 | . . . . . . . . . . . . . . . 1 Scanalyzer 4 | . . . 2 . . . . . . . . 1 . . 1 Retrieve Study 4 | . . . 2 . . . . . . . . 1 . . 1 Garrison Access Hacks 1 | . . . . . . . 1 . . . . . . . . Seal Access 1 | . . . . . . . 1 . . . . . . . . Unauthorized Hacks . | . . . . . . . . . . . . . . . . Terminals . | . . . . . . . . . . . . . . . . Fabricators . | . . . . . . . . . . . . . . . . Repair Stations . | . . . . . . . . . . . . . . . . Recycling Units . | . . . . . . . . . . . . . . . . Scanalyzers . | . . . . . . . . . . . . . . . . Garrison Access . | . . . . . . . . . . . . . . . . Data Cores Recovered 1 | . 1 . . . . . . . . . . . . . . Used . | . . . . . . . . . . . . . . . . Hacking Detections 17 | . 1 . 3 . . . 2 3 4 1 . . 1 . 2 Full Trace Events 2 | . . . 1 . . . . . . . . . 1 . . Feedback Events . | . . . . . . . . . . . . . . . . Feedback Blocked . | . . . . . . . . . . . . . . . . Robot Schematics Acquired . | . . . . . . . . . . . . . . . . Robots Built . | . . . . . . . . . . . . . . . . Authchips . | . . . . . . . . . . . . . . . . Time . | . . . . . . . . . . . . . . . . Total Robot Build Rating . | . . . . . . . . . . . . . . . . Part Schematics Acquired 3 | . . . . . . . . . 3 . . . . . . Parts Built . | . . . . . . . . . . . . . . . . Authchips . | . . . . . . . . . . . . . . . . Time . | . . . . . . . . . . . . . . . . Total Part Build Rating . | . . . . . . . . . . . . . . . . Part Studies Acquired 4 | . . . 2 . . . . . . . . 1 . . 1 Parts Repaired 2 | . . . . . . . 1 . . . . . . . 1 Time 38 | . . . . . . . 26 . . . . . . . 12 Parts Recycled . | . . . . . . . . . . . . . . . . Recycled Matter . | . . . . . . . . . . . . . . . . Retrieved Matter . | . . . . . . . . . . . . . . . . Retrieved Components 3 | . . . . . . . . . . . . . . . 3 Parts Scanalyzed . | . . . . . . . . . . . . . . . . Part Schematics Acquired . | . . . . . . . . . . . . . . . . Parts Damaged . | . . . . . . . . . . . . . . . . Bothacking | -11 -10 -10 -9 -9 -9 -8 -8 -8 -8 -6 -6 -5 -4 -4 -3 ------------ Run | Yrd Mat Min Mat Min Exi Min Mat Sto Rec Fac DSF Fac Fac DSF Res Used RIF Installer . | . . . . . . . . . . . . . . . . Robots Hacked . | . . . . . . . . . . . . . . . . Non-combat . | . . . . . . . . . . . . . . . . Combat . | . . . . . . . . . . . . . . . . Robot Hacks Applied . | . . . . . . . . . . . . . . . . Relay Couplers Released . | . . . . . . . . . . . . . . . . Fabnet Peak Effective % . | . . . . . . . . . . . . . . . . Robots Rewired . | . . . . . . . . . . . . . . . . Allies Hacked . | . . . . . . . . . . . . . . . . Hacks Repelled . | . . . . . . . . . . . . . . . . Allies | -11 -10 -10 -9 -9 -9 -8 -8 -8 -8 -6 -6 -5 -4 -4 -3 -------- Run | Yrd Mat Min Mat Min Exi Min Mat Sto Rec Fac DSF Fac Fac DSF Res Total Allies 12 | . . 2 . . . . . 10 . . . . . . . Largest Group 10 | . . 2 1 . . . . 10 8 6 . . . . . Highest-Rated Group 173 | . . 35 4 . . . . 173 128 96 . . . . . Highest-Rated Ally 31 | . . 31 4 . . . . 29 16 16 . . . . . Total Orders 5 | . . . . . . . . 5 . . . . . . . GUARD 3 | . . . . . . . . 3 . . . . . . . AID 2 | . . . . . . . . 2 . . . . . . . Ally Attacks 109 | . . 7 . . . . . 53 49 . . . . . . Total Damage 1350 | . . 64 . . . . . 666 620 . . . . . . Kills 17 | . . 1 . . . . . 8 8 . . . . . . Allies Corrupted . | . . . . . . . . . . . . . . . . Allies Melted 1 | . . . . . . . . . 1 . . . . . . Intel | -11 -10 -10 -9 -9 -9 -8 -8 -8 -8 -6 -6 -5 -4 -4 -3 ------- Run | Yrd Mat Min Mat Min Exi Min Mat Sto Rec Fac DSF Fac Fac DSF Res Active Infowar (turns) 2507 | 24 349 258 224 . 40 125 290 244 466 17 35 147 7 13 268 Sensors 446 | . . 222 224 . . . . . . . . . . . . Terrain 409 | 24 349 36 . . . . . . . . . . . . . T.N.C. 1652 | . . . . . 40 125 290 244 466 17 35 147 7 13 268 Robot Analysis Total . | . . . . . . . . . . . . . . . . Derelict Logs Recovered 2 | . . 1 . 1 . . . . . . . . . . . Drone Launches . | . . . . . . . . . . . . . . . . Drone Recoveries . | . . . . . . . . . . . . . . . . Exploration | -11 -10 -10 -9 -9 -9 -8 -8 -8 -8 -6 -6 -5 -4 -4 -3 ------------- Run | Yrd Mat Min Mat Min Exi Min Mat Sto Rec Fac DSF Fac Fac DSF Res Turns Passed 3513 | 132 349 258 899 167 82 125 304 244 466 17 35 147 7 13 268 Spaces Moved 3266 | 61 159 136 471 159 217 143 410 316 423 38 89 163 22 40 419 Core 125 | 3 . . . . . . . . . . . 1 . . 121 Treads 879 | 58 159 136 471 55 . . . . . . . . . . . Legs . | . . . . . . . . . . . . . . . . Wheels . | . . . . . . . . . . . . . . . . Hover 35 | . . . . . . . . . . . . 35 . . . Flight 2227 | . . . . 104 217 143 410 316 423 38 89 127 22 40 298 Fastest Speed 28 | 50 160 160 160 37 37 37 31 29 28 32 32 32 32 32 32 Average Speed 75 | 154 160 160 160 79 37 37 31 30 67 37 37 79 32 32 38 Slowest Speed 300 | 160 160 160 160 160 37 37 117 34 102 102 104 300 32 32 105 Overloaded Moves . | . . . . . . . . . . . . . . . . Propulsion Burnouts . | . . . . . . . . . . . . . . . . Robots Hopped 10 | . . . . . . . 6 1 . . . . . 1 2 Potential Cave-ins . | . . . . . . . . . . . . . . . . Cave-ins Triggered . | . . . . . . . . . . . . . . . . Exploration Rate (%) 32 | 4 34 42 40 25 59 18 35 34 76 1 90 5 1 45 14 Regions Visited 15 Branch Regions 6 Pre-discovered Areas . | . . . . . . . . . . . . . . . . Known Exits Taken 5 | . . . 1 . . 1 1 . . 1 . . 1 . . Unknown Exits Taken 8 | 1 1 1 . 1 1 . . 1 1 . . 1 . . . Scrap Searched 1 | . . 1 . . . . . . . . . . . . . Spaces Dug 13 | . . . . . . . 1 5 . . . . . . 7 Terrain Destroyed 422 | . 7 7 210 106 . 63 1 5 . . . . . . 23 Melee 13 | . . . . . . . 1 5 . . . . . . 7 Projectile . | . . . . . . . . . . . . . . . . AOE 409 | . 7 7 210 106 . 63 . . . . . . . . 16 Terrain Rammed . | . . . . . . . . . . . . . . . . Walls Destroyed . | . . . . . . . . . . . . . . . . Machines Disabled . | . . . . . . . . . . . . . . . . Actions | -11 -10 -10 -9 -9 -9 -8 -8 -8 -8 -6 -6 -5 -4 -4 -3 --------- Run | Yrd Mat Min Mat Min Exi Min Mat Sto Rec Fac DSF Fac Fac DSF Res Total 4037 | 79 201 164 543 181 217 205 541 437 604 40 89 174 21 38 503 Wait 473 | . 7 15 1 1 . 54 78 92 169 . . . . . 56 Move 3234 | 60 158 135 470 158 216 142 399 313 422 37 88 162 21 38 415 Hop 7 | . . . . . . . 4 1 . . . . . . 2 Pick Up 33 | 3 4 1 6 1 . . 6 3 4 . . 1 . . 4 Fast Attach 40 | 6 . . 6 2 1 1 8 3 . . . 8 . . 5 Attach 17 | 1 1 2 1 3 . . 3 . . 2 . 2 . . 2 Detach 10 | . . . . 3 . . 2 1 . 1 . . . . 3 Swap 22 | 1 3 1 9 2 . . 4 . 1 . . . . . 1 Drop 32 | . . . 10 2 . . 8 5 5 . . . . . 2 Fire 116 | 8 27 4 39 9 . 8 15 . 1 . . . . . 5 Melee 45 | . . . . . . . 14 19 2 . 1 1 . . 8 Ram . | . . . . . . . . . . . . . . . . Kick . | . . . . . . . . . . . . . . . . Crush 8 | . 1 6 1 . . . . . . . . . . . . Escape Stasis . | . . . . . . . . . . . . . . . . Rewire . | . . . . . . . . . . . . . . . . Trap . | . . . . . . . . . . . . . . . . Miscellaneous . | . . . . . . . . . . . . . . . . Route ------- -11/Scrapyard -10/Materials -10/Mines -9/Materials (discovered 4 exits: *Mat x2 / *Min x2) -9/Mines (discovered 2 exits: Mat / *Exi) -9/Exiles -8/Mines -8/Materials -8/Storage -8/Recycling -6/Factory -6/DSF -5/Factory -4/Factory (discovered 5 exits: Res x4 / DSF) -4/DSF -3/Research (discovered 3 exits: [*Res] / [*Arm] / *Qua) History --------- Turn | Location | Event 27 | -11/Scrapyard | Discovered new exit (range 16) 133 | -11/Scrapyard | Entered Materials 286 | -10/Materials | Discovered new exit (range 16) 314 | -10/Materials | Build established: Mutant 482 | -10/Materials | Entered Mines 538 | -10/Mines | Learned 2 Materials zone layouts 708 | -10/Mines | Discovered new exit (range 15) 740 | -10/Mines | Entered Materials 740 | -9/Materials | Accompanied by 1 ally 740 | -9/Materials | Evolved 2 slots: Utility x2 741 | -9/Materials | Identified exit to Materials 1025 | -9/Materials | Discovered exit to Materials (range 6) 1150 | -9/Materials | Central database locked down 1592 | -9/Materials | Identified exit to Mines 1639 | -9/Materials | Entered Mines 1645 | -9/Mines | Assembled infested the area 1769 | -9/Mines | Destroyed 8 combat bots 1796 | -9/Mines | Found a hidden stash of uninstalled traps 1798 | -9/Mines | Lost 4 parts (1p2u1w) 1804 | -9/Mines | Deemed a non-threat by the Exiles lab entrance 1805 | -9/Mines | Discovered new exit (range 5) 1806 | -9/Mines | Entered Exiles 1815 | -9/Exiles | Met 8R-AWN 1822 | -9/Exiles | Met EX-HEX 1832 | -9/Exiles | Met EX-BIN 1836 | -9/Exiles | Aligned with FarCom system 1837 | -9/Exiles | Given EX-Vault access code 1846 | -9/Exiles | Opened EX-Vault 1848 | -9/Exiles | Found Modified TNC 1856 | -9/Exiles | Warned to stay clear of 0b10 Research branches 1868 | -9/Exiles | Met EX-DEC 1885 | -9/Exiles | Discovered new exit (range 10) 1888 | -9/Exiles | Left Exiles lab with Modified TNC 1888 | -9/Exiles | Entered Mines 2005 | -8/Mines | Discovered exit to Materials (range 15) 2013 | -8/Mines | Entered Materials 2013 | -8/Materials | Evolved 2 slots: Propulsion x2 2048 | -8/Materials | Repaired Sml. Storage Unit 2219 | -8/Materials | Identified exit to Storage 2317 | -8/Materials | Entered Storage 2334 | -8/Storage | Assisted by bots powering up and referring to "LRC-V3" 2514 | -8/Storage | Used back door to open Recycling access 2514 | -8/Storage | Discovered new exit (range 4) 2561 | -8/Storage | Entered Recycling 2561 | -8/Recycling | Accompanied by 8 allies 2609 | -8/Recycling | Scanned before Scraplab entrance 2672 | -8/Recycling | Build established: Commander-Sprinter 2704 | -8/Recycling | Angered Scraplab inhabitants 2981 | -8/Recycling | Discovered new exit (range 15) 3027 | -8/Recycling | Entered Factory 3027 | -6/Factory | Accompanied by 6 allies 3027 | -6/Factory | Evolved 4 slots: Propulsion x2, Utility x2 3041 | -6/Factory | Identified exit to DSF 3044 | -6/Factory | Entered DSF 3054 | -6/DSF | Assembled infested the area 3065 | -6/DSF | Additional patrols routed to DSF 3066 | -6/DSF | Discovered new exit (range 15) 3079 | -6/DSF | Entered Factory 3079 | -5/Factory | Evolved 2 slots: Utility x2 3202 | -5/Factory | Central database locked down 3205 | -5/Factory | Discovered new exit (range 13) 3226 | -5/Factory | Entered another Factory area 3226 | -4/Factory | Evolved 2 slots: Utility x2 3231 | -4/Factory | Identified exit to Research 3233 | -4/Factory | Identified exit to DSF 3233 | -4/Factory | Entered DSF 3241 | -4/DSF | Discovered exit to Research (range 15) 3246 | -4/DSF | Entered Research 3246 | -3/Research | Evolved 2 slots: Power x1, Propulsion x1 3268 | -3/Research | Repaired Reaction Control System 3345 | -3/Research | Found Gamma Bomb Array 3346 | -3/Research | Found Prototype Processor 3346 | -3/Research | Identified Spectral Analyzer 3410 | -3/Research | Discovered new exit (range 14) 3413 | -3/Research | Discovered new exit (range 10) 3415 | -3/Research | Identified exit to Quarantine 3489 | -3/Research | Spotted B-86 Titan 3492 | -3/Research | Core integrity fell below 50% 3497 | -3/Research | Core integrity fell below 20% 3514 | -3/Research | Discovered new exit (range 5) 3514 | -3/Research | Destroyed by Y-72 Warden with Railgun Last Messages --------------- 03452_ Dropped Reaction Control System. 03453_ Acquired Gamma Bomb Array. 03454_ U-05 Engineer lays Concrete. 03464_ Hacking Suite destroyed. 03490_ Adv. Thermal Shield destroyed. 03492_ Critical hit (Burn: +37). 03492_ Knocked back. 03492_ Penetrated by Slug. 03495_ Critical hit (Burn: +50). 03499_ Penetrated by Slug. 03500_ Hacking Suite destroyed. 03501_ ALERT: Potential suspicious activity detected, Programmers report to Research Zone 4S. 03501_ P-80 Master resets G-67 Veteran, system corruption cleaned. 03502_ Slug penetrates T-07 Excavator. 03502_ T-07 Excavator destroyed. 03502_ Slug penetrates Wall. 03514_ EXIT=FOUND Map ----- +----------------------------------------------------+ | ?????????????????????????????#! #??? | | ?????????????????????????????# #?? | | ?????????????????????????????# #? | | ?????????????????????????????# # | | ?????????????????????###??#### # #? | | ?????????????????????# ?+ ## # #? | | ?????????????????????# ?# #?#########+#"## #? | | ?????????????????????# # #####"##" #? | | ?????????????????????# # ! #? | | ?????????????????????#! + *%% ! #? | | ?????????????????????# # ######+##| ] #? | | ?????????????????????# # #???? # ## | | ?????????????????????# ?# #???? # | | ?????????????????????# ?# #??? ]]p# | | ?????????????????????###??# #??? ] # "" ## | | ??????????????????????????# #?? !#""" ## | | ??????????????????????????# #?? #"R g | | ??????????????????????????# #?#+#####"""g ## | | ??????????????????????????# #???????#"""g % #? | | ??????????????????????????# #???????# #? | | ??????????????????????????# #???????# #? | | ??????????????????????????# #???????# #? | | ??????????????????????????# #???????# g ### #? | | ????????????????????????### ### ##T #g #?# #? | | ????????????????????????# p #?# #? | | ????????????????????????#@############+###?# ## | | ????????????????????????# #????????????????# # | | ????????????????????????# #????????????????# ## | | ???????????????????????? ????????????????# | | ???????????????????????? !????????????????# | | ???????????????????????? Y ????????????????# | | ???????????????????????? ????????????????# | | ??????????????????????? ???????????????####/## | | ???????????????????????#####????????????????# | | ????????????????????????????????????????????#* | | ????????????????????????????????????????????# | | ????????????????????????????????????????????# | | ????????????????????????????????????????????# | | ????????????????????????????????????????????# | | ????????????????????????????????????????????# | | ????????????????????????????????????????????# | | ????????????????????????????????????????????# [ | | ????????????????????????????????????????????# | | ????????????????????????????????????????????# | | ??????????????????????????????############### | | ??????????????????????????????# ###+### | | ??????????????????????????????# #?# #?? | | ??????????????????????????????# """ """ #?# #?? | | ??????????????????????????????# """ """ ### ### | | ??????????????????????????????# """ """ # * | +----------------------------------------------------+ Best States ------------- Heat Dissipation 46 Energy Generation 20 Energy Capacity 250 Matter Stores 300 Matter Capacity 300 Sight Range 16 Robot Scan Range 14 Terrain Scan Range 16 Terrain Scan Density 10 Armor Coverage 675 Resistance: TH 30 Core Shielding 20 Evasion (%) 72 Melee Accuracy 6 Recoil Reduction 2 Offensive Hacking 50 Item Schematics ----------------- Imp. Utility Shielding | -8/Recycling | Hacked Med. Reactive Plating | -8/Recycling | Hacked Adv. Weight Redist. System | -8/Recycling | Hacked Robot Schematics ------------------ None Fabricated ------------ Nothing Repaired ---------- Sml. Storage Unit | 7% | -8/Materials Reaction Control System | 13% | -3/Research Studied --------- Flight Unit | -9/Materials | Hacked Grenade Launcher | -9/Materials | Hacked Nuclear Pulse Array | -5/Factory | Hacked Mic. Antimatter Reactor | -3/Research | Hacked Alien Tech Used ----------------- None Achievements -------------- None Challenges ------------ None Game ------ Seed DispersionCouplerRailcannon Manual? 0 Play Time 00:40:12 Cumulative 74.0 hours Start 2026.02.17 @ 22:24:47 End 2026.02.17 @ 23:04:37 Sessions 1 Manual Loads 0 Difficulty Rogue Special Mode None Game No. 127 Rogue 127 Adventurer 0 Explorer 0 Win Type - Total 0 Types 0/0/0/0/0/0/0/0/0/0 Lore% 36 Gallery% 43 Achievement% 30 Wizard Run 0 Options --------- Layout 1 ASCII 0 Keyboard 1 Movement Arrows Keybinds 0 Fullscreen 1 Font 24/Smallcaps Map View 50x35 Zoom Use 0% Tactical HUD 1 Map Filters NONE Filters NONE Steam 1 RUN: a50824b6-bc39-47b9-a82f-66da32e2fec7